bitfinex/quotes_BTCUSD_20250115
["timestamp","ask_amount","ask_price","bid_price","bid_amount"]
[1736976127893,0.01556915,99822.0,99820.0,0.0751]
[1736976129039,0.00626236,99821.0,99820.0,0.0751]
[1736976129453,0.31084728,99821.0,99820.0,0.0751]
[1736976129658,0.11048928,99821.0,99820.0,0.0751]
[1736976130447,0.00626236,99821.0,99820.0,0.0878591]
[1736976130629,0.200332,99834.0,99820.0,0.0878591]
[1736976130834,0.001,99821.0,99820.0,0.0878591]
[1736976131790,0.01555623,99827.0,99820.0,0.0878591]
[1736976132104,0.002,99821.0,99820.0,0.0928591]
[1736976132679,0.01555623,99827.0,99820.0,0.0928591]
[1736976132960,0.01555623,99828.0,99821.0,0.01621191]
[1736976134278,0.02181857,99830.0,99821.0,0.01621191]
[1736976134446,0.10422692,99829.0,99821.0,0.01621191]
[1736976134863,0.001,99827.0,99821.0,0.01621191]
[1736976135224,0.001,99828.0,99821.0,0.01621191]
[1736976135465,0.10422692,99829.0,99822.0,0.0127591]
[1736976135670,0.10722692,99829.0,99822.0,0.0127591]
[1736976136051,0.10622692,99829.0,99822.0,0.0127591]
[1736976136275,0.001,99827.0,99822.0,0.0127591]
[1736976136842,0.001,99827.0,99823.0,0.07610171]
[1736976136959,0.001,99827.0,99824.0,0.01621191]
[1736976137674,0.01555623,99833.0,99824.0,0.01621191]
[1736976137871,0.002,99828.0,99823.0,0.07610165]
[1736976138293,0.001,99829.0,99823.0,0.07610165]
[1736976138699,0.002,99827.0,99823.0,0.0751]
[1736976138881,0.10422692,99826.0,99823.0,0.0751]
[1736976139945,0.20035,99825.0,99823.0,0.0751]
[1736976140103,0.10422692,99825.0,99823.0,0.0751]
[1736976140928,0.10422692,99825.0,99824.0,0.01357167]
[1736976141929,0.10522692,99825.0,99824.0,0.01357167]
[1736976142154,0.10422692,99825.0,99824.0,0.01357167]
[1736976142516,0.10722692,99825.0,99824.0,0.01357167]
[1736976143250,0.200352,99824.0,99819.0,0.0489]
[1736976143452,0.200356,99822.0,99817.0,0.0835955]
[1736976143654,0.10422692,99821.0,99817.0,0.0835955]
[1736976144166,0.20036,99820.0,99817.0,0.0835955]
[1736976144353,0.10422692,99821.0,99817.0,0.0835955]
[1736976144549,0.10422692,99821.0,99818.0,0.00863808]
[1736976145175,0.10522692,99821.0,99818.0,0.00863808]
[1736976145376,0.10622692,99821.0,99818.0,0.00863808]
[1736976145555,0.002,99821.0,99818.0,0.00863808]
[1736976145895,0.200334,99834.0,99818.0,0.00863808]
[1736976145896,0.01555623,99830.0,99818.0,0.00863808]
[1736976146106,0.002,99821.0,99817.0,0.0835955]
[1736976146522,0.002,99821.0,99819.0,0.0818]
[1736976147232,0.001,99821.0,99819.0,0.0818]
[1736976147654,0.002,99821.0,99819.0,0.0818]
[1736976147894,0.001,99821.0,99819.0,0.0818]
[1736976148116,0.10422692,99829.0,99820.0,0.01375017]
[1736976148298,0.001,99821.0,99820.0,0.01375017]
[1736976149042,0.0062623,99828.0,99820.0,0.01375017]
[1736976149390,0.001,99821.0,99820.0,0.01375017]
[1736976151262,0.002,99821.0,99820.0,0.01375017]
[1736976151656,0.001,99821.0,99820.0,0.01375017]
[1736976152834,0.002,99821.0,99819.0,0.08359529]
[1736976153341,0.0062623,99820.0,99819.0,0.08359529]
[1736976155002,0.0072623,99820.0,99819.0,0.08359529]
[1736976155465,0.0082623,99820.0,99819.0,0.08359529]
[1736976156166,0.02381853,99820.0,99819.0,0.08359529]
[1736976156349,0.02381853,99820.0,99819.0,0.09850828]
[1736976157821,0.0082623,99820.0,99819.0,0.09850828]
[1736976159674,0.002,99820.0,99819.0,0.09850828]
[1736976159908,0.002,99820.0,99819.0,0.00179529]
[1736976160288,0.30658692,99820.0,99819.0,0.00179529]
[1736976161344,0.30458692,99820.0,99819.0,0.00179529]
[1736976161549,0.30558692,99820.0,99819.0,0.00179529]
[1736976161957,0.30458692,99820.0,99819.0,0.00179529]
[1736976162225,0.31576599,99820.0,99819.0,0.00179529]
[1736976162788,0.31476599,99820.0,99819.0,0.00179529]
[1736976163200,0.32202934,99820.0,99819.0,0.00179529]
[1736976163637,0.32102934,99820.0,99819.0,0.00179529]
[1736976163998,0.32302934,99820.0,99819.0,0.00179529]
[1736976164648,0.32102934,99820.0,99819.0,0.00179529]
[1736976164855,0.32076599,99820.0,99819.0,0.00179529]
[1736976165214,0.31676599,99820.0,99819.0,0.00179529]
[1736976165409,0.32076599,99820.0,99819.0,0.00179529]
[1736976167533,0.32702941,99820.0,99819.0,0.00179529]
[1736976170382,0.57452041,99820.0,99819.0,0.00179529]
[1736976171159,0.56434134,99820.0,99819.0,0.00179529]
[1736976171358,0.46685034,99820.0,99819.0,0.00179529]
[1736976171777,0.01226342,99820.0,99819.0,0.07899529]
[1736976171987,0.01226342,99820.0,99819.0,0.09212392]
[1736976172720,0.01226342,99820.0,99819.0,0.07899529]
[1736976173561,0.01226342,99820.0,99819.0,0.00179529]
[1736976173790,0.11649034,99820.0,99819.0,0.00179529]
[1736976174406,0.11449034,99820.0,99819.0,0.00179529]
[1736976175694,0.11549034,99820.0,99819.0,0.00179529]
[1736976176256,0.11449034,99820.0,99819.0,0.00179529]
[1736976177096,0.11649034,99820.0,99819.0,0.00179529]
[1736976182422,0.26720414,99820.0,99819.0,0.00179529]
[1736976182700,0.54510826,99820.0,99819.0,0.00179529]
[1736976182907,0.47202379,99820.0,99819.0,0.00179529]
[1736976183553,0.47002379,99820.0,99819.0,0.00179529]
[1736976184611,0.097491,99818.0,99817.0,0.0007975]
[1736976184813,0.35847172,99818.0,99817.0,0.0007975]
[1736976185018,0.38890037,99818.0,99817.0,0.0007975]
[1736976185661,0.51110037,99818.0,99817.0,0.0007975]
[1736976186105,0.51110037,99818.0,99817.0,0.0057975]
[1736976186316,0.51110037,99818.0,99817.0,0.0077975]
[1736976188017,0.73506065,99818.0,99817.0,0.0077975]
[1736976188213,0.097491,99814.0,99813.0,0.0017955]
[1736976188400,0.48347417,99814.0,99813.0,0.0017955]
[1736976188594,0.48276037,99814.0,99813.0,0.0017955]
[1736976189494,0.76183082,99814.0,99813.0,0.0037955]
[1736976189930,0.76183082,99814.0,99813.0,0.0057955]
[1736976190136,0.76183082,99814.0,99813.0,0.0077955]
[1736976190308,0.58276037,99814.0,99813.0,0.0077955]
[1736976190889,0.58880037,99814.0,99813.0,0.0077955]
[1736976192653,0.69302729,99814.0,99813.0,5e-07]
[1736976193065,0.72303297,99814.0,99813.0,5e-07]
[1736976193993,0.58880037,99814.0,99813.0,5e-07]
[1736976194196,0.59873241,99814.0,99813.0,5e-07]
[1736976195457,0.73292965,99814.0,99813.0,5e-07]
[1736976196126,0.94867177,99814.0,99813.0,5e-07]
[1736976196305,1.05289869,99814.0,99813.0,5e-07]
[1736976197266,1.17263205,99814.0,99813.0,5e-07]
[1736976198128,0.94867177,99814.0,99813.0,0.00179579]
[1736976198331,0.94867177,99814.0,99813.0,7.9e-07]
[1736976198969,1.17263205,99814.0,99813.0,7.9e-07]
[1736976199586,0.94867177,99814.0,99813.0,7.9e-07]
[1736976201191,0.94967177,99814.0,99813.0,7.9e-07]
[1736976201606,0.95067177,99814.0,99813.0,7.9e-07]
[1736976201828,0.96694525,99814.0,99813.0,7.9e-07]
[1736976202031,0.96794525,99814.0,99813.0,7.9e-07]
[1736976202231,0.95167177,99814.0,99813.0,7.9e-07]
[1736976202846,0.96212515,99814.0,99813.0,7.9e-07]
[1736976203445,0.97782514,99814.0,99813.0,7.9e-07]
[1736976203880,0.96212515,99814.0,99813.0,7.9e-07]
[1736976205647,0.96212515,99814.0,99786.0,0.00278839]
[1736976205648,0.097491,99787.0,99786.0,0.00278839]
[1736976205875,0.55214392,99787.0,99786.0,0.00329131]
[1736976206075,0.55214392,99787.0,99786.0,0.00229821]
[1736976207324,0.55214392,99787.0,99786.0,0.00429821]
[1736976207842,0.55214392,99787.0,99786.0,0.00229821]
[1736976208312,0.55314392,99787.0,99786.0,0.00929821]
[1736976208723,0.55214392,99787.0,99786.0,0.00229821]
[1736976208926,0.55214392,99787.0,99786.0,0.00529821]
[1736976211744,0.56210425,99787.0,99786.0,0.00529821]
[1736976212304,0.5931524,99787.0,99786.0,0.00529821]
[1736976216648,0.69737932,99787.0,99786.0,0.00529821]
[1736976216794,0.5931524,99787.0,99786.0,0.00529821]
[1736976219369,0.7161524,99787.0,99786.0,0.00529821]
[1736976220546,0.7161524,99787.0,99786.0,2.1e-07]
[1736976220747,0.447942,99775.0,99774.0,0.00179592]
[1736976220950,0.58321707,99775.0,99774.0,0.00179592]
[1736976221982,0.66581707,99775.0,99774.0,0.00179592]
[1736976222602,0.66581707,99775.0,99774.0,0.00579592]
[1736976222944,0.66581707,99775.0,99774.0,0.00379592]
[1736976223187,0.66581707,99775.0,99774.0,0.00179592]
[1736976223601,0.67591075,99775.0,99774.0,0.00179592]
[1736976223986,0.99631075,99775.0,99774.0,0.00179592]
[1736976224215,0.097491,99769.0,99755.0,0.0009989]
[1736976224415,0.10422692,99758.0,99745.0,0.0764]
[1736976224726,0.097491,99748.0,99745.0,0.0764]
[1736976224859,0.35243172,99748.0,99745.0,0.0764]
[1736976225071,0.35171792,99748.0,99745.0,0.0764]
[1736976225472,0.35171792,99748.0,99747.0,0.01429384]
[1736976225679,0.35171792,99748.0,99747.0,0.00179487]
[1736976226085,0.35171792,99748.0,99747.0,0.00184506]
[1736976226547,0.35271792,99748.0,99747.0,0.00684506]
[1736976226750,0.35271792,99748.0,99747.0,0.00184506]
[1736976226751,0.35171792,99748.0,99747.0,0.00184506]
[1736976227145,0.35171792,99748.0,99747.0,0.00684506]
[1736976228525,0.35171792,99748.0,99747.0,0.00484506]
[1736976228729,0.35171792,99748.0,99747.0,0.00684506]
[1736976228730,0.25422692,99748.0,99747.0,0.00684506]
[1736976228928,0.26026692,99748.0,99747.0,0.00684506]
[1736976229130,0.25422692,99748.0,99747.0,0.00684506]
[1736976229328,0.25422692,99748.0,99747.0,0.08324506]
[1736976231477,0.25422692,99748.0,99747.0,0.08124506]
[1736976231919,0.25422692,99748.0,99747.0,0.08224506]
[1736976232136,0.25422692,99748.0,99747.0,0.07924506]
[1736976232315,0.25622692,99748.0,99747.0,0.07924506]
[1736976232563,0.25422692,99748.0,99747.0,0.07924506]
[1736976232883,0.25422692,99748.0,99747.0,0.08224506]
[1736976233218,0.25422692,99748.0,99747.0,0.08024506]
[1736976233468,0.25422692,99748.0,99747.0,0.08424506]
[1736976233863,0.25422692,99748.0,99747.0,0.08024506]
[1736976234528,0.25422692,99748.0,99747.0,0.07824506]
[1736976234930,0.200484,99759.0,99750.0,0.0498]
[1736976235124,0.20048,99761.0,99752.0,0.0498]
[1736976235125,0.10422692,99758.0,99752.0,0.0498]
[1736976235362,0.10422692,99758.0,99747.0,0.01035406]
[1736976235363,0.10422692,99758.0,99753.0,0.0828]
[1736976235519,0.10422692,99758.0,99754.0,0.0498]
[1736976235719,0.10422692,99758.0,99755.0,0.0828]
[1736976235984,0.10422692,99758.0,99757.0,0.0828]
[1736976236179,0.200453,99774.0,99758.0,0.0498]
[1736976236491,0.200453,99774.0,99761.0,0.0828]
[1736976236701,0.200444,99779.0,99761.0,0.0828]
[1736976236702,0.10422692,99773.0,99766.0,0.002509]
[1736976236919,0.200428,99786.0,99775.0,0.0828]
[1736976237122,0.15,99784.0,99777.0,0.0828]
[1736976237340,0.10422692,99783.0,99777.0,0.0828]
[1736976237673,0.01554793,99779.0,99777.0,0.0828]
[1736976237888,0.10422692,99778.0,99777.0,0.0828]
[1736976238509,0.10472879,99778.0,99777.0,0.0828]
[1736976238710,0.10472879,99778.0,99777.0,0.09766199]
[1736976238922,0.00050187,99778.0,99777.0,0.10017099]
[1736976239124,0.00950187,99778.0,99777.0,0.1519731]
[1736976239335,0.01350187,99778.0,99777.0,0.1519731]
[1736976241889,0.01350187,99778.0,99777.0,0.15097099]
[1736976244934,0.01435757,99778.0,99777.0,0.15097099]
[1736976245337,0.01415757,99778.0,99777.0,0.15097099]
[1736976249972,0.01415757,99778.0,99777.0,0.1336]
[1736976250175,0.11838449,99778.0,99777.0,0.1336]
[1736976251213,0.11838449,99778.0,99777.0,0.001]
[1736976251430,0.26838449,99778.0,99777.0,0.001]
[1736976252865,0.27880944,99778.0,99777.0,0.001]
[1736976256621,0.23680944,99778.0,99777.0,0.001]
[1736976257449,0.24284944,99778.0,99777.0,0.001]
[1736976265551,0.34034044,99778.0,99777.0,0.001]
[1736976265756,0.42134044,99778.0,99777.0,0.001]
[1736976266376,0.601377,99771.0,99751.0,0.0823]
[1736976266529,0.11546835,99761.0,99752.0,0.00858918]
[1736976266740,0.200493,99754.0,99752.0,0.00858918]
[1736976267079,0.10422692,99753.0,99751.0,0.0823]
[1736976267639,0.200497,99752.0,99751.0,0.0823]
[1736976267822,0.30472392,99752.0,99751.0,0.0823]
[1736976268029,0.10422692,99752.0,99751.0,0.0823]
[1736976268275,0.10422692,99752.0,99751.0,0.0833]
[1736976268476,0.10422692,99752.0,99751.0,0.0823]
[1736976268898,0.11022692,99752.0,99751.0,0.09673008]
[1736976269638,0.11022692,99752.0,99751.0,0.0833]
[1736976269837,0.26094072,99752.0,99751.0,0.001]
[1736976270048,0.26322692,99752.0,99751.0,0.001]
[1736976272025,0.26926692,99752.0,99751.0,0.001]
[1736976273904,0.27969399,99752.0,99751.0,0.001]
[1736976278620,0.27365399,99752.0,99751.0,0.001]
[1736976278826,0.27365399,99752.0,99751.0,0.1285]
[1736976279028,0.26322692,99752.0,99751.0,0.1285]
[1736976279585,0.26322692,99752.0,99751.0,0.001]
[1736976280025,0.26322692,99752.0,99751.0,0.0027955]
[1736976282097,0.009,99752.0,99751.0,0.1302955]
[1736976282292,0.009,99752.0,99751.0,0.1328045]
[1736976282493,0.009,99752.0,99751.0,0.14644413]
[1736976283087,0.200474,99764.0,99754.0,0.002509]
[1736976283282,0.10422692,99763.0,99755.0,0.0808]
[1736976283527,0.15,99766.0,99754.0,0.002509]
[1736976283528,0.200462,99770.0,99762.0,0.0808]
[1736976283705,0.10422692,99769.0,99763.0,0.0083309]
[1736976284743,0.200465,99768.0,99763.0,0.0083309]
[1736976284945,0.200469,99766.0,99763.0,0.0083309]
[1736976285161,0.10422692,99767.0,99763.0,0.0083309]
[1736976285676,0.10422692,99767.0,99763.0,0.0093309]
[1736976285895,0.10422692,99767.0,99764.0,0.00926399]
[1736976286398,0.006,99766.0,99764.0,0.00926399]
[1736976286698,0.10722692,99767.0,99764.0,0.00926399]
[1736976286903,0.11022692,99767.0,99764.0,0.00926399]
[1736976287078,0.11322692,99767.0,99764.0,0.00926399]
[1736976287285,0.11322692,99767.0,99765.0,0.0093573]
[1736976288065,0.10722692,99767.0,99765.0,0.0093573]
[1736976288296,0.30469492,99767.0,99765.0,0.0093573]
[1736976288570,0.31369492,99767.0,99765.0,0.0093573]
[1736976288974,0.32069492,99767.0,99765.0,0.0103573]
[1736976289174,0.32069492,99767.0,99766.0,0.00936663]
[1736976290149,0.31769492,99767.0,99766.0,0.00936663]
[1736976291728,0.30469492,99767.0,99766.0,0.00936663]
[1736976291926,0.30769492,99767.0,99766.0,0.00936663]
[1736976292169,0.30769492,99767.0,99766.0,0.01036663]
[1736976292170,0.31469492,99767.0,99766.0,0.01036663]
[1736976293536,0.11422692,99767.0,99766.0,0.01036663]
[1736976296239,0.26494072,99767.0,99766.0,0.001]
[1736976296444,0.26422692,99767.0,99766.0,0.001]
[1736976303017,0.350469,99766.0,99765.0,0.0017955]
[1736976303253,0.45469592,99766.0,99765.0,0.0017955]
[1736976304664,0.55218692,99766.0,99765.0,0.0017955]
[1736976305075,0.55218692,99766.0,99765.0,0.0047955]
[1736976306040,0.55318692,99766.0,99765.0,0.0047955]
[1736976307994,0.55318692,99766.0,99765.0,0.0017955]
[1736976308204,0.58431077,99766.0,99765.0,0.0017955]
[1736976308425,0.58331077,99766.0,99765.0,0.0027955]
[1736976308826,0.58331077,99766.0,99765.0,0.0037955]
[1736976308976,0.58331077,99766.0,99765.0,0.0017955]
[1736976309178,0.58331077,99766.0,99765.0,0.0027955]
[1736976309458,0.58331077,99766.0,99765.0,0.0047955]
[1736976310228,0.58331077,99766.0,99765.0,0.0037955]
[1736976310658,0.58331077,99766.0,99765.0,0.0047955]
[1736976311321,0.58331077,99766.0,99765.0,0.0037955]
[1736976311748,0.58331077,99766.0,99765.0,0.0047955]
[1736976312186,0.58331077,99766.0,99765.0,0.0037955]
[1736976312387,0.58331077,99766.0,99765.0,0.0047955]
[1736976316995,0.71741274,99766.0,99765.0,0.0047955]
[1736976317149,0.79581274,99766.0,99765.0,0.0047955]
[1736976317751,0.66171077,99766.0,99765.0,0.0047955]
[1736976319036,0.76171077,99766.0,99765.0,0.0047955]
[1736976319238,0.76171077,99766.0,99765.0,0.0027955]
[1736976319409,0.350497,99752.0,99751.0,0.0017955]
[1736976319565,0.49188777,99752.0,99751.0,0.0017955]
[1736976321397,0.49188777,99752.0,99751.0,0.0037955]
[1736976322070,0.49288777,99752.0,99751.0,0.0087955]
[1736976322631,0.67995125,99752.0,99751.0,0.0087955]
[1736976323443,0.59037877,99752.0,99751.0,0.0087955]
[1736976324291,0.90872627,99752.0,99751.0,0.0087955]
[1736976326873,0.72953839,99752.0,99751.0,0.0087955]
[1736976327269,0.68293839,99752.0,99751.0,0.0087955]
[1736976327928,0.92139944,99752.0,99751.0,1e-08]
[1736976328169,0.097491,99748.0,99747.0,1e-08]
[1736976328372,0.38355557,99748.0,99747.0,1e-08]
[1736976328571,0.38284177,99748.0,99747.0,1e-08]
[1736976329498,0.38284177,99748.0,99747.0,0.00050188]
[1736976329716,0.38284177,99748.0,99747.0,0.00150188]
[1736976329951,0.38284177,99748.0,99747.0,0.00550188]
[1736976330564,0.38284177,99748.0,99747.0,0.00450188]
[1736976330745,0.51704922,99748.0,99747.0,0.00450188]
[1736976331160,0.51704922,99748.0,99747.0,0.00050188]
[1736976331363,0.51804922,99748.0,99747.0,0.00050188]
[1736976332634,0.38384177,99748.0,99747.0,0.00050188]
[1736976333651,0.35875792,99748.0,99747.0,0.00050188]
[1736976334739,0.38986179,99748.0,99747.0,0.00050188]
[1736976338237,0.38886179,99748.0,99747.0,0.00050188]
[1736976338612,0.42900579,99748.0,99747.0,0.00050188]
[1736976339177,0.51848993,99748.0,99747.0,0.00050188]
[1736976341201,0.42900579,99748.0,99747.0,0.00050188]
[1736976342436,0.42296579,99748.0,99747.0,0.00050188]
[1736976342639,0.65659271,99748.0,99747.0,8.8e-07]
[1736976342890,0.65659271,99748.0,99720.0,0.00179529]
[1736976342891,0.548008,99742.0,99720.0,0.00179529]
[1736976343008,0.350553,99724.0,99720.0,0.00179529]
[1736976343225,0.48588379,99724.0,99723.0,0.00194608]
[1736976343424,0.45477992,99724.0,99723.0,0.00194608]
[1736976344965,0.45577992,99724.0,99723.0,0.00294608]
[1736976345165,0.45477992,99724.0,99723.0,0.00194608]
[1736976345368,0.46471806,99724.0,99723.0,0.00194608]
[1736976345588,0.46571806,99724.0,99723.0,0.00494608]
[1736976347833,0.46571806,99724.0,99723.0,0.13424608]
[1736976348066,0.46571806,99724.0,99723.0,0.14802975]
[1736976348298,0.46571806,99724.0,99723.0,0.13424608]
[1736976349947,0.46471806,99724.0,99723.0,0.13324608]
[1736976350344,0.46571806,99724.0,99723.0,0.13824608]
[1736976350753,0.46571806,99724.0,99723.0,0.13624608]
[1736976351155,0.46671806,99724.0,99723.0,0.13624608]
[1736976351715,0.46571806,99724.0,99723.0,0.13624608]
[1736976352273,0.46571806,99724.0,99723.0,0.13824608]
[1736976352696,0.46571806,99724.0,99723.0,0.00894608]
[1736976352901,0.49690924,99724.0,99723.0,0.00894608]
[1736976356781,0.63143257,99724.0,99723.0,0.00894608]
[1736976361288,0.49690924,99724.0,99723.0,0.00894608]
[1736976364236,0.46571806,99724.0,99723.0,0.00894608]
[1736976373567,0.49691082,99724.0,99723.0,0.00894608]
[1736976374988,0.58670931,99724.0,99723.0,0.00894608]
[1736976380120,0.49691082,99724.0,99723.0,0.00894608]
[1736976382123,0.63160856,99724.0,99723.0,0.00894608]
[1736976383945,0.62167042,99724.0,99723.0,0.13884608]
[1736976384208,0.62167042,99724.0,99723.0,0.15334065]
[1736976384209,0.25522692,99724.0,99723.0,0.15334065]
[1736976384376,0.001,99724.0,99723.0,0.15584965]
[1736976384929,0.001,99724.0,99723.0,0.15384965]
[1736976385129,0.200537,99732.0,99724.0,0.0807]
[1736976385341,0.200537,99732.0,99724.0,0.08170265]
[1736976385543,0.200537,99732.0,99726.0,0.0807]
[1736976386665,0.005,99732.0,99726.0,0.0807]
[1736976387082,0.0156063,99728.0,99726.0,0.0807]
[1736976388320,0.0186063,99728.0,99726.0,0.0807]
[1736976388542,0.003,99728.0,99726.0,0.0807]
[1736976388742,0.003,99728.0,99727.0,0.01449457]
[1736976388937,0.003,99728.0,99727.0,0.09770357]
[1736976389366,0.01,99728.0,99727.0,0.09770357]
[1736976389574,0.007,99728.0,99727.0,0.09770357]
[1736976389844,0.007,99728.0,99727.0,0.09870357]
[1736976390030,0.017,99728.0,99727.0,0.09870357]
[1736976390234,0.017,99728.0,99727.0,0.12170357]
[1736976390483,0.017,99728.0,99727.0,0.37245321]
[1736976390659,0.017,99728.0,99727.0,0.37145057]
[1736976391474,0.014,99728.0,99727.0,0.38146624]
[1736976391921,0.0156063,99742.0,99734.0,0.200533]
[1736976392124,0.0156063,99746.0,99737.0,0.023]
[1736976392275,0.0156063,99746.0,99739.0,0.0807]
[1736976392473,0.0156063,99746.0,99740.0,0.08421146]
[1736976392655,0.0156063,99746.0,99740.0,0.13341146]
[1736976393260,0.00479593,99741.0,99740.0,0.13341146]
[1736976393677,0.00679593,99741.0,99740.0,0.14790603]
[1736976394104,0.00479593,99741.0,99740.0,0.14790603]
[1736976394468,0.00679593,99741.0,99740.0,0.17090603]
[1736976394889,0.01179593,99741.0,99740.0,0.17090603]
[1736976395109,0.00379593,99741.0,99740.0,0.17090603]
[1736976395453,0.00379593,99741.0,99740.0,0.17190603]
[1736976395582,0.00879593,99741.0,99740.0,0.17190603]
[1736976395783,0.00679593,99741.0,99740.0,0.17090603]
[1736976396331,0.01379593,99741.0,99740.0,0.17090603]
[1736976396655,0.01179593,99741.0,99740.0,0.17090603]
[1736976397015,0.01379593,99741.0,99740.0,0.17090603]
[1736976398789,0.01379593,99741.0,99740.0,0.18106811]
[1736976402877,0.01379593,99741.0,99740.0,0.38529503]
[1736976403080,0.00179593,99741.0,99740.0,0.38429257]
[1736976404262,0.00010372,99741.0,99740.0,0.38529257]
[1736976404579,0.00010372,99741.0,99740.0,0.38429257]
[1736976405030,0.00010372,99741.0,99740.0,0.38629257]
[1736976405654,0.00010372,99741.0,99740.0,0.39029257]
[1736976405855,0.00010372,99741.0,99740.0,0.38629257]
[1736976406116,0.00010372,99741.0,99740.0,0.38429257]
[1736976406548,0.00010372,99741.0,99740.0,0.38529257]
[1736976406719,0.00010372,99741.0,99740.0,0.38829257]
[1736976406880,0.00010372,99741.0,99740.0,0.38729257]
[1736976407297,0.00010372,99741.0,99740.0,0.38829257]
[1736976407865,0.00010372,99741.0,99740.0,0.38729257]
[1736976408083,0.00010372,99741.0,99740.0,0.38429257]
[1736976408658,0.00010372,99741.0,99740.0,0.38729257]
[1736976408864,0.00010372,99741.0,99740.0,0.38429257]
[1736976409380,0.00010372,99741.0,99740.0,0.38829257]
[1736976409579,0.00010372,99741.0,99740.0,0.38529257]
[1736976410283,0.00010372,99741.0,99740.0,0.28529257]
[1736976411048,0.00010372,99741.0,99740.0,0.38529257]
[1736976411631,0.00010372,99741.0,99740.0,0.38429257]
[1736976411842,0.00010372,99741.0,99740.0,0.38529257]
[1736976412230,0.00010372,99741.0,99740.0,0.38429257]
[1736976412412,0.00010372,99741.0,99740.0,0.38529257]
[1736976412660,0.00010372,99741.0,99740.0,0.28529257]
[1736976414139,0.00010372,99741.0,99740.0,0.18106565]
[1736976414311,0.00010372,99741.0,99740.0,0.14790357]
[1736976414777,0.00010372,99741.0,99740.0,0.17190598]
[1736976415319,0.00010372,99741.0,99740.0,0.17090598]
[1736976417121,0.00110372,99741.0,99740.0,0.17090598]
[1736976418089,0.00410372,99741.0,99740.0,0.17090598]
[1736976419925,0.00410372,99741.0,99740.0,0.1727019]
[1736976421360,0.01037098,99741.0,99740.0,0.1727019]
[1736976422502,0.00410372,99741.0,99740.0,0.1727019]
[1736976422844,0.00110372,99741.0,99740.0,0.1727019]
[1736976423050,0.00010372,99741.0,99740.0,0.1727019]
[1736976433443,0.00010372,99741.0,99740.0,0.17169949]
[1736976433642,0.00010372,99741.0,99740.0,0.04280189]
[1736976434096,0.00010372,99741.0,99740.0,0.04480189]
[1736976434406,0.00010372,99741.0,99740.0,0.04280189]
[1736976434898,0.00210372,99741.0,99740.0,0.04380189]
[1736976435116,0.00010372,99741.0,99740.0,0.04380189]
[1736976435254,0.00937047,99741.0,99740.0,0.04280189]
[1736976435664,0.01037047,99741.0,99740.0,0.04280189]
[1736976439070,0.00410372,99741.0,99740.0,0.04280189]
[1736976439310,0.00310372,99741.0,99740.0,0.04280189]
[1736976440000,0.00310372,99741.0,99740.0,0.04179949]
[1736976440201,0.00010372,99741.0,99740.0,0.03929049]
[1736976440400,0.00010372,99741.0,99740.0,0.04279949]
[1736976440741,0.00010372,99741.0,99740.0,0.01879949]
[1736976440948,0.00010372,99741.0,99740.0,0.01980196]
[1736976441088,0.00310372,99741.0,99740.0,0.01980196]
[1736976441300,0.01037047,99741.0,99740.0,0.01980196]
[1736976445708,0.01037047,99741.0,99740.0,0.24332296]
[1736976445919,0.01037047,99741.0,99740.0,0.31962049]
[1736976446760,0.00310372,99741.0,99740.0,0.31962049]
[1736976446968,0.00010372,99741.0,99740.0,0.31962049]
[1736976447202,0.00110372,99741.0,99740.0,0.31962049]
[1736976447582,0.00010372,99741.0,99740.0,0.31962049]
[1736976448441,0.00010372,99741.0,99740.0,0.45405226]
[1736976449208,0.00010372,99741.0,99740.0,0.31962049]
[1736976449435,0.00010372,99741.0,99740.0,0.57364741]
[1736976449639,0.00010372,99741.0,99740.0,0.82364741]
[1736976450221,0.00010372,99741.0,99740.0,0.83064741]
[1736976450648,7.2e-07,99741.0,99740.0,1.04970037]
[1736976450824,7.2e-07,99741.0,99740.0,1.05270037]
[1736976451031,7.2e-07,99741.0,99740.0,1.05470037]
[1736976451707,0.00179593,99751.0,99740.0,1.05470037]
[1736976451708,0.00179593,99751.0,99750.0,0.352509]
[1736976451901,0.00179593,99751.0,99750.0,0.82181336]
[1736976452328,9.3e-07,99751.0,99750.0,0.82181336]
[1736976452872,9.3e-07,99751.0,99750.0,0.83189425]
[1736976453296,0.00100093,99751.0,99750.0,0.83889425]
[1736976453504,0.00100093,99751.0,99750.0,1.23588809]
[1736976453701,9.3e-07,99751.0,99750.0,1.22888809]
[1736976453967,0.00100093,99751.0,99750.0,1.23788809]
[1736976454212,0.00100093,99751.0,99750.0,1.24188809]
[1736976454418,0.00100093,99751.0,99750.0,0.84489425]
[1736976456724,0.00084926,99751.0,99750.0,0.85093425]
[1736976456952,0.00084926,99751.0,99750.0,0.84489425]
[1736976457127,0.00084926,99751.0,99750.0,0.85093425]
[1736976458931,0.00084926,99751.0,99750.0,1.07551864]
[1736976459330,0.00084926,99751.0,99750.0,0.85093425]
[1736976460141,0.00084926,99751.0,99750.0,0.8707888]
[1736976466186,0.00084926,99751.0,99750.0,1.09518744]
[1736976466555,0.00170416,99751.0,99750.0,1.09518744]
[1736976468073,0.00170416,99751.0,99750.0,1.08914744]
[1736976468272,0.00170416,99751.0,99750.0,1.06929289]
[1736976468718,0.00170416,99751.0,99750.0,1.02440239]
[1736976469500,0.00170416,99751.0,99750.0,0.84489425]
[1736976472329,0.08011416,99784.0,99783.0,0.002509]
[1736976473576,0.08361603,99784.0,99783.0,0.002509]
[1736976475117,0.08561603,99784.0,99783.0,0.002509]
[1736976475320,0.08561603,99784.0,99783.0,0.01700357]
[1736976477990,0.08551603,99784.0,99783.0,0.01700357]
[1736976478188,0.10824353,99784.0,99783.0,0.01700357]
[1736976478756,0.10824353,99784.0,99783.0,0.002509]
[1736976480623,0.09263637,99784.0,99783.0,0.002509]
[1736976489927,0.09263637,99784.0,99783.0,0.00430387]
[1736976490141,0.09263637,99784.0,99783.0,0.20473787]
[1736976490582,0.01262221,99784.0,99783.0,0.20473787]
[1736976491195,0.01262221,99784.0,99783.0,0.00430387]
[1736976492358,0.01262221,99784.0,99783.0,0.20473787]
[1736976492514,0.01262221,99784.0,99783.0,0.00430387]
[1736976493127,0.01262221,99784.0,99783.0,0.02730387]
[1736976493305,0.01262221,99784.0,99783.0,0.02830601]
[1736976493682,0.01262221,99784.0,99783.0,0.07740601]
[1736976494110,0.01262221,99784.0,99783.0,0.62158844]
[1736976494262,0.00962221,99784.0,99783.0,0.6205863]
[1736976494491,0.00762221,99784.0,99783.0,0.80009444]
[1736976494691,0.00762221,99784.0,99783.0,0.80309444]
[1736976494972,2.1e-07,99784.0,99783.0,0.80009444]
[1736976495185,2.1e-07,99784.0,99783.0,0.80409444]
[1736976495641,0.0001,99801.0,99800.0,0.331809]
[1736976495845,0.0001,99801.0,99800.0,0.354809]
[1736976497592,0.0001,99801.0,99800.0,0.358809]
[1736976498436,0.0001,99801.0,99800.0,0.360809]